{"text_format":"1","workbook":"xlsx","n_sheets":3,"sheets":["FeuillePersonnage","BDDListe","Feuil3"],"not_rendered":{"charts":0,"images":0,"macros":1,"external_links":0,"defined_names":0,"comments":0,"pivot_tables":0},"unopened":[],"bounds":{"document_bytes":16777216,"sheet_cells":100000,"rows_first":2000,"rows_last":500,"rows_between":2000,"halvings":0,"cell_chars":16384,"cell_head_chars":4096},"cells_cut":0,"cells_raw":0,"read":"whole","date_system":"1900"}

{"sheet":"FeuillePersonnage","index":0,"n_rows":50,"n_cols":8,"rows_kept":50,"cut":false,"hidden":false,"merged":[[4,5,7,5],[8,4,9,4],[8,5,9,5],[4,2,7,2],[4,3,7,3],[8,3,9,3],[8,2,9,2],[4,4,7,4]]}
["Nom",null,"Age",null,"Sexe"]
["Prénom",null,"Taille",null,"Poid"]
["Nationalité",null,"Cheveux",null,"Yeux"]
["Résidence",null,"Lieu de naissance",null,"Beauté"]
["Profession",null,"Qualités",null,"Défauts"]
["Tendance"]
["Culte"]
["Grade/Rang/Titre"]
["Etat Physique",null,"Signes particuliers",null,"Chance (4 D10 +)"]
["Etat Mental"]
[]
[]
["Force Mentale",null,null,null,"Physique"]
[null,"Bonus classes","points attribués","% total",null,"Bonus classes","points attribues","% total"]
["Charisme interieur",null,null,{"$f":"C15+B15+$B$13","v":0},"Agilité",null,null,{"$f":"G15+F15+$F$13","v":0}]
["Commerce",null,null,{"$f":"C16+B16+$B$13","v":0},"Capacité Pulmonaire",null,null,{"$f":"G16+F16+$F$13","v":0}]
["Connaissance de la faune aquatique",null,null,0,"Charisme Extérieur",null,null,0]
["Connaissance de la flore aquatique",null,null,0,"Combat (        ) BD +",null,null,0]
["Connaissance de la Physique (    )",null,null,0,"Combat (        ) BD +",null,null,0]
["Connaissance de la plongée",null,null,0,"Combat (        ) BD +",null,null,0]
["Connaissance des mineraux",null,null,0,"Combat (        ) BD +",null,null,0]
["Connaissance du monde extérieur",null,null,0,"Combat (        ) BD +",null,null,0]
["Fouille",null,null,0,"Discrétion",null,null,0]
["Lire les anciens",null,null,0,"Escalade",null,null,0]
["Parler (    )",null,null,0,"Esquive",null,null,0]
["Parler l'Atlante",null,null,0,"Force",null,null,0]
["Parler l'Océanien",null,null,0,"Nager",null,null,0]
["Parler le Subabyssien",null,null,{"$f":"C28+B28+$B$13+15","v":15},"Plongée",null,null,0]
["Parler le Sumérien",null,null,0,"Resistance",null,null,0]
["Perception",null,null,0,null,null,null,0]
["Résistance",null,null,0,null,null,null,0]
[null,null,null,0,null,null,null,0]
[null,null,null,0,null,null,null,0]
[null,null,null,0,null,null,null,0]
[null,null,null,0,null,null,null,0]
[null,null,null,0,null,null,null,0]
["Technique",null,null,null,"Habileté"]
["Bricolage",null,null,{"$f":"C38+B38+$B$37","v":0},"Armes a feu Terrestres",null,null,{"$f":"G38+F38+$F$37","v":0}]
["Electronique",null,null,{"$f":"C39+B39+$B$37","v":0},"Armes Aquatique",null,null,{"$f":"G39+F39+$F$37","v":0}]
["Informatique",null,null,0,"Armes Tranchantes",null,null,0]
["Mécanique",null,null,0,"Médecine",null,null,0]
["Modifier/Réparer un armement",null,null,0,"Missiles/Bombes",null,null,0]
["Survie",null,null,0,"Piloter un aquajet",null,null,0]
[null,null,null,0,"Précision/Lancer",null,null,0]
[null,null,null,0,null,null,null,0]
[null,null,null,0,null,null,null,0]
[null,null,null,0,null,null,null,0]
[null,null,null,0,null,null,null,0]
[null,null,null,0,null,null,null,0]
[null,null,null,0,null,null,null,0]

{"sheet":"BDDListe","index":1,"n_rows":5,"n_cols":1,"rows_kept":5,"cut":false,"hidden":false,"merged":[]}
[]
["Musée"]
["Terrain"]
["Université"]
["Pilleur de tombes"]

{"sheet":"Feuil3","index":2,"n_rows":0,"n_cols":0,"rows_kept":0,"cut":false,"hidden":false,"merged":[]}